[Event "Bangabandhu Premier Div League 2022"]
[Site "Dhaka"]
[Date "2022.12.06"]
[Round "7.5"]
[White "Abu Sufian, Shakil"]
[Black "Rahman, Ziaur"]
[Result "0-1"]
[ECO "B30"]
[WhiteElo "2229"]
[BlackElo "2464"]
[Annotator "TA"]
[PlyCount "52"]
[EventDate "2022.11.30"]
[EventType "team-tourn"]
[EventCountry "BAN"]
[SourceTitle "playchess.com"]
[Source "ChessBase"]
[SourceQuality "1"]
[TimeControl "40/5400+30:1800+30"]

{[%evp 9,52,27,60,42,52,21,38,34,38,35,40,38,38,30,34,-17,0,-2,61,55,73,-86,-75,-82,-97,-106,-93,-145,-130,-797,-762,-822,-826,-780,-751,-2362,-868,-855,-837,-29984,-29985,-29985,-29986,-29986,-29987]} 1. e4 {[%emt 0:00:03]} c5 {[%emt 0:01:12]} 2. Nf3 {[%emt 0:00:06]} Nc6 {[%emt 0:00:27]} 3. Bb5 {[%emt 0:00:20]} e6 {[%emt 0:00:18]} 4. O-O {[%emt 0:02:45]} Nge7 {[%emt 0:00:32]} 5. Re1 {[%emt 0:02:03]} b6 {[%emt 0:03:51]} 6. c3 {[%emt 0:00:42] B30: Sicilian: 2...Nc6 3 Bb5, lines without ...g6.} a6 {[%emt 0:00:09]} 7. Bf1 {[%emt 0:01:07]} Bb7 {[%emt 0:13:46]} 8. d4 {[%emt 0:00:14] White is slightly better.} cxd4 {[%emt 0:01:27]} 9. cxd4 {[%emt 0:00:05] Hoping for d5.} d5 {[%emt 0:00:32]} 10. e5 {[%emt 0:00:20]} Nf5 {[%emt 0:01:25]} 11. Nc3 {[%emt 0:03:09]} Be7 {[%emt 0:01:02] [#]} 12. Be3 $146 {[%emt 0:08:06]} ({Better is} 12. Bd3 $14) ({Predecessor:} 12. a3 h5 13. g3 g5 14. h3 b5 15. Bg2 g4 16. hxg4 hxg4 17. Nh2 Ncxd4 18. Nxg4 {0-1 (67) Mammadzada,G (2473)-Dzagnidze,N (2526) Shusha 2022}) 12... O-O {[%emt 0:01:09]} 13. Bd3 {[%emt 0:01:47]} Na5 {[%emt 0:05:26]} (13... Nxe3 $11 14. Rxe3 g6) 14. Qb1 $14 {[%emt 0:08:17]} g6 {[%emt 0:02:08]} 15. g4 $2 {[%emt 0:12:07]} (15. Bxf5 $16 {keeps the pressure on.} exf5 16. Bh6) 15... Nxe3 $17 {[%emt 0:00:43]} 16. fxe3 {[%emt 0:02:50]} Rc8 {[%emt 0:01:34]} 17. Ne2 {[%emt 0:02:53]} Bb4 $1 {[%emt 0:04:46]} 18. Rd1 {[%emt 0:01:51]} ({White should play} 18. Nf4) 18... Nc4 {[%emt 0:00:56]} 19. Kf2 $2 {[%emt 0:00:12][%mdl 8192] [#] Now White is beyond hope.} (19. a3 $17 Be7 20. Rc1) 19... f6 $1 $19 {[%emt 0:03:18]} 20. Nf4 {[%emt 0:11:05]} fxe5 {[%emt 0:01:01]} 21. dxe5 {[%emt 0:00:04] [#]} Nxe3 $1 {[%emt 0:05:04][%mdl 512]} 22. Kxe3 {[%emt 0:00:50]} (22. Kg3 Qe7) 22... Bc5+ {[%emt 0:01:28]} (22... d4+ $142 23. Nxd4 {[#]} Rxf4 $1 {[%mdl 512]}) 23. Ke2 {[%emt 0:00:51]} Rxf4 {[%emt 0:00:11]} 24. Bxg6 {[%emt 0:00:44]} Rxf3 {[%emt 0:06:30] Black mates.} (24... hxg6 25. Qxg6+ Kf8 26. Qh6+ (26. Qxe6 $2 Rc6 $19) 26... Ke7 27. Qxf4 $16) 25. Kxf3 {[%emt 0:04:12]} Qh4 {[%emt 0:01:31][%csl Gc5][%cal Rh4f2]} ({Not} 25... hxg6 26. Qxg6+ Kh8 27. Qh6+ (27. Qxe6 $2 {perishes.} Rc6 $19) 27... Kg8 28. Qg6+ Kh8 29. Qh6+ (29. Qxe6 $2 Rc6 $19) 29... Kg8 30. Qg6+ $11) 26. Bxh7+ {[%emt 0:00:53]} Kh8 {[%emt 0:00:12][%mdl 64] Weighted Error Value: White=0.94/Black=0.26 (precise)} (26... Qxh7 $2 {loses.} 27. Qxh7+ Kxh7 28. Kg3 $19) 0-1

[Event "Bangabandhu Premier Div League 2022"]
[Site "Dhaka"]
[Date "2022.12.06"]
[Round "7.5"]
[White "Anata, Choudhury"]
[Black "abzid, Rahman"]
[Result "0-1"]
[ECO "B05"]
[WhiteElo "2176"]
[BlackElo "2043"]
[Annotator "TA"]
[PlyCount "124"]
[EventDate "2022.12.01"]
[EventCountry "BAN"]
[SourceTitle "playchess.com"]
[Source "ChessBase"]
[SourceQuality "1"]
[TimeControl "40/5400+30:1800+30"]

{[%evp 11,124,53,76,66,63,28,85,90,75,80,80,60,109,73,111,115,160,156,172,173,176,73,54,61,82,84,150,155,145,111,106,114,107,117,112,112,113,115,114,114,104,114,93,47,100,-50,-46,-46,-33,-201,-197,-184,-194,-634,-197,-191,-165,-183,270,274,292,292,291,278,292,285,285,278,285,258,260,258,239,159,159,159,159,148,157,108,76,79,182,194,190,0,0,0,0,0,0,-811,-802,-1657,-1088,-1141,-996,-638,0,-29983,-29984,-29988,-29989,-29991,-29990,-29992,-29993,-29993,-29993,-29993,-29994,-29994,-29994,-29996,-29997]} 1. e4 {[%emt 0:00:05][%cal Be2e4,Be4e5][%mdl 32]} Nf6 {[%emt 0:03:21]} 2. e5 {[%emt 0:00:20]} Nd5 {[%emt 1:28:09]} 3. d4 {[%emt 0:00:08]} d6 {[%emt 0:00:00]} 4. Nf3 {[%emt 0:00:08]} Bg4 {[%emt 0:00:00]} 5. Be2 {[%emt 0:00:16]} Nc6 {[%emt 0:00:00]} 6. O-O {[%emt 1:32:33]} Nb6 {[%emt 0:02:00]} 7. a4 {[%emt 0:00:00] B05: Alekhine's Defence: 4 Nf3 Bg4.} a5 {[%emt 0:00:30] [#]} 8. Be3 $146 {[%emt 0:01:00]} ({Predecessor:} 8. exd6 Qxd6 9. Nc3 e6 10. Nb5 Qd7 11. Ne5 Nxe5 12. dxe5 Bxe2 13. Qxe2 Qc6 14. Rd1 Be7 {1-0 (45) Reichardt,M (1934)-Gajic,Z (2027) IECG email 1999}) 8... d5 {[%emt 0:00:00]} (8... dxe5 $11 {remains equal.} 9. Nxe5 (9. dxe5 g6 $11) 9... Nxe5 10. Bxg4 Nxg4 11. Qxg4 g6) 9. h3 $16 {[%emt 0:00:00] White is better.} Bxf3 {[%emt 0:00:00]} 10. Bxf3 {[%emt 0:00:00]} (10. gxf3 e6 $11) 10... e6 {[%emt 0:01:30]} 11. Nd2 {[%emt 0:00:00]} Be7 {[%emt 0:00:00]} (11... Ne7 $14) 12. c3 {[%emt 0:00:00]} O-O {[%emt 0:00:00]} 13. Be2 {[%emt 0:02:30]} Bg5 {[%emt 0:01:30]} 14. f4 {[%emt 0:00:00]} Bh6 {[%emt 0:00:00]} 15. Bd3 {[%emt 0:01:00]} f6 {[%emt 0:01:00]} 16. Qe2 {[%emt 0:00:00]} (16. exf6 $18 {is more deadly.} Qxf6 17. g3) 16... fxe5 {[%emt 0:00:00]} 17. fxe5 {[%emt 0:01:00]} Rxf1+ {[%emt 0:00:00]} 18. Nxf1 {[%emt 0:00:30][%cal Bd2f1,Bf1h2,Bh2g4,Bg4h6][%mdl 32]} Qh4 {[%emt 0:00:00]} (18... Bxe3+ $142 19. Qxe3 (19. Nxe3 Qh4 $16) 19... Qe7) 19. Bf2 $1 {[%emt 0:00:00]} Qe7 {[%emt 0:00:00]} 20. Qc2 g6 {[%emt 0:02:30]} 21. Nh2 {[%emt 0:00:00]} Rf8 {[%emt 0:00:00]} 22. Ng4 {[%emt 0:02:00]} Bg7 {[%emt 0:01:00]} 23. Be3 {[%emt 0:00:00]} Qe8 {[%emt 0:00:30]} 24. Bg5 {[%emt 0:01:00]} Nd7 {[%emt 0:00:00]} 25. h4 {[%emt 0:00:30]} Ne7 {[%emt 0:01:00] Inhibits h5.} 26. Nh6+ {[%emt 0:00:00]} Kh8 {[%emt 0:00:30]} 27. h5 {[%emt 0:01:00]} ({White should play} 27. Qb3 $16) 27... c5 {[%emt 0:00:30]} ({Black should try} 27... gxh5 $14 28. Bxh7 c5) 28. b3 {[%emt 0:00:30]} (28. hxg6 $16 {Strongly threatening Nf7+.} Nxg6 29. Qd1) 28... cxd4 $15 {[%emt 0:00:00]} 29. cxd4 {[%emt 0:00:30]} Nc6 {[%emt 0:00:00]} 30. hxg6 $2 {[%emt 0:00:00]} ({Only move:} 30. Be3 $1 $15) 30... Nxd4 $19 {[%emt 0:00:00]} 31. Nf7+ {[%emt 0:00:00]} Qxf7 $1 {[%emt 0:02:00]} 32. Qb2 {[%emt 0:01:30]} (32. gxf7 Nxc2 33. Bxc2) 32... Nxe5 $2 {[%emt 0:00:30]} 33. gxf7 {[%emt 0:00:00]} Ndf3+ $1 {[%emt 0:00:00] Pair of Knights!} 34. Kh1 {[%emt 0:01:00]} (34. gxf3 $2 Nxf3+ 35. Kg2 Bxb2 $19) 34... Nxg5 {[%emt 0:01:00][%mdl 8192]} (34... Nxd3 $19 {avoids the disaster.} 35. Qc2 Nxg5) 35. Qd2 $18 {[%emt 0:00:30]} Nxd3 {[%emt 0:00:00]} 36. Rf1 {[%emt 0:00:00]} Ne4 {[%emt 0:00:00]} 37. Qxd3 {[%emt 0:01:00]} Bf6 {[%emt 0:01:30]} 38. Rf4 {[%emt 0:00:30]} Rxf7 {[%emt 0:00:00]} 39. Qh3 {[%emt 0:00:00]} e5 {[%emt 0:00:00]} 40. Qc8+ {[%emt 0:00:25]} Kg7 {[%emt 0:01:30]} 41. Rf3 {[%emt 0:31:05]} d4 {[%emt 0:01:00]} 42. Qg4+ {[%emt 0:00:30]} Ng5 {[%emt 0:00:32]} 43. Rf1 {[%emt 0:00:30]} h6 {[%emt 0:29:58]} 44. Re1 {[%emt 0:00:00]} Re7 {[%emt 0:00:30]} 45. Qf5 {[%emt 0:01:00]} e4 {[%emt 0:00:00][%cal Be5e4,Be4e3,Be3e2][%mdl 32] [#]} 46. Rf1 $1 {[%emt 0:00:30] Inhibits e3.} Re6 {[%emt 0:01:00]} (46... Rf7 $16 {was called for.}) 47. Qxa5 {[%emt 0:00:00]} e3 {[%emt 0:00:00] [#] ...e2 is the strong threat.} 48. Qd5 $2 {[%emt 0:01:00]} (48. Qb5 $1 $18 {[%cal Rb5b7]}) 48... e2 $11 {[%emt 0:00:00]} 49. Re1 {[%emt 0:00:30][%cal Od5c4] Hoping for Qc4!} (49. Qxb7+ $2 {is the wrong capture.} Re7 50. Qb5 exf1=N 51. Qxf1 Re3 $19) 49... Re3 {[%emt 0:00:00] The board is on fire.} 50. Qxb7+ {[%emt 0:00:00]} Kg6 {[%emt 0:02:00] Threatens to win with ...d3.} 51. Qd5 $2 {[%emt 0:00:00][%mdl 8192]} (51. Qb6 $11 Ne6 52. g3) 51... d3 $19 {[%emt 0:00:00] aiming for ...Be5.} 52. g4 {[%emt 0:00:00]} Nf3 {[%emt 0:00:00]} 53. Qg8+ {[%emt 0:00:00]} Bg7 {[%emt 0:00:00][%cal Od3d2]} 54. Qd5 {[%emt 0:00:00]} Be5 $2 {[%emt 0:00:00]} (54... Nd4 $19 {( -> ...d2)} 55. Qa5 Be5) 55. Qe6+ $2 {[%emt 0:03:00][%mdl 8192]} (55. Qg8+ $11 Bg7 56. Qd5) 55... Kg5 {[%emt 0:02:30] Black mates.} 56. Qf5+ {[%emt 0:00:00]} Kh4 {[%emt 0:00:00]} 57. Qh5+ {[%emt 0:00:00]} Kg3 {[%emt 0:00:00]} 58. Qxh6 {[%emt 0:00:53]} Nxe1 {[%emt 0:00:00]} 59. Qh2+ {[%emt 0:00:36]} Kf3 {[%emt 0:00:00]} 60. Qh3+ {[%emt 0:01:01]} Bg3 {[%emt 0:00:33]} 61. g5 {[%emt 0:00:30] [#]} Ng2 $1 {[%emt 0:00:19][%cal Re2e1][%mdl 512]} 62. Qh5+ {[%emt 0:00:30]} (62. Qxg2+ Kg4) 62... Kf2 {[%emt 0:00:24] Weighted Error Value: White=0.54/Black=0.49} 0-1

[Event "Bangabandhu Premier Div League 2022"]
[Site "Dhaka"]
[Date "2022.12.06"]
[Round "7.6"]
[White "Chanda, Sandipan"]
[Black "Ghosh, Diptayan"]
[Result "1/2-1/2"]
[ECO "E46"]
[WhiteElo "2474"]
[BlackElo "2544"]
[Annotator "TA"]
[PlyCount "149"]
[EventDate "2022.11.30"]
[EventType "team-tourn"]
[EventCountry "BAN"]
[SourceTitle "playchess.com"]
[Source "ChessBase"]
[SourceQuality "1"]
[TimeControl "40/5400+30:1800+30"]

{[%evp 9,149,-5,4,0,0,0,0,0,3,0,11,26,21,0,0,0,0,0,0,0,0,0,0,0,0,0,0,0,0,0,0,0,0,0,0,0,0,0,18,18,18,18,18,18,18,9,14,12,13,8,19,17,28,36,81,13,44,34,61,58,54,52,63,8,23,0,0,0,0,0,0,0,0,0,0,0,0,0,0,0,0,0,0,0,0,0,6,0,0,0,0,-14,-7,-14,0,0,0,0,0,0,0,0,0,0,8,8,8,8,22,8,8,8,8,8,0,0,27,0,0,0,0,0,8,8,8,8,8,8,8,8,8,8,8,8,8,8,8,8,8,8,8,0]} 1. d4 {[%emt 0:00:04]} Nf6 {[%emt 0:02:28]} 2. c4 {[%emt 0:00:12]} e6 {[%emt 0:00:07]} 3. Nc3 {[%emt 0:00:07]} Bb4 {[%emt 0:00:05]} 4. e3 {[%emt 0:00:05]} O-O {[%emt 0:00:13]} 5. Bd2 {[%emt 0:00:05]} c5 {[%emt 0:00:19]} 6. a3 {[%emt 0:00:21] E46: Nimzo-Indian: Rubinstein: 4 e3 0-0 5 Ne2 without early Bd3.} Bxc3 {[%emt 0:00:06]} 7. Bxc3 {[%emt 0:00:07]} Ne4 {[%emt 0:00:05]} 8. Ne2 {[%emt 0:00:05]} b6 {[%emt 0:00:04]} 9. d5 {[%emt 0:00:22]} Ba6 {[%emt 0:00:08]} ({Don't take} 9... Qh4 10. g3 Qg5 11. Bg2 exd5 12. cxd5 $14 (12. Qxd5 Qxd5 13. cxd5 f5 $14)) 10. b3 {[%emt 0:00:55]} b5 {[%emt 0:00:27]} 11. Qc2 {[%emt 0:00:16]} ({Much weaker is} 11. f3 Nxc3 12. Nxc3 bxc4 $15) (11. Qd3 $5 {[%cal Rd3e4]} Nxc3 12. Nxc3 $11) 11... exd5 {[%emt 0:00:06]} 12. cxd5 {[%emt 0:00:10]} Nxc3 {[%emt 0:00:03] [#]} 13. Qxc3 $146 {[%emt 0:00:18]} ({Predecessor:} 13. Nxc3 b4 14. Bxa6 Nxa6 15. axb4 cxb4 16. Rxa6 Rc8 17. O-O Rxc3 18. Qa2 Qg5 19. d6 {½-½ (55) Sandipan,C (2458)-Petrosyan,M (2610) Abu Dhabi 2022}) 13... d6 {[%emt 0:01:05]} 14. Ng3 {[%emt 0:00:10]} Nd7 {[%emt 0:02:28]} 15. Be2 {[%emt 0:00:07]} Nf6 {[%emt 0:01:46]} 16. Qd2 {[%emt 0:00:39] Against b4} Qb6 {[%emt 0:05:21]} 17. O-O {[%emt 0:00:57]} Rfe8 {[%emt 0:00:12]} 18. Rfe1 {[%emt 0:09:57]} Bb7 {[%emt 0:12:08]} 19. Bf3 {[%emt 0:00:29]} Re5 {[%emt 0:07:27][%cal Rb7d5]} 20. e4 {[%emt 0:01:11]} Rae8 {[%emt 0:00:14]} 21. b4 {[%emt 0:11:14]} h5 {[%emt 0:04:12]} 22. h4 {[%emt 0:03:48]} c4 {[%emt 0:04:56]} 23. a4 {[%emt 0:00:36]} a6 {[%emt 0:02:04]} 24. axb5 {[%emt 0:05:27]} axb5 {[%emt 0:00:04]} 25. Red1 {[%emt 0:00:36]} g6 {[%emt 0:09:17]} 26. Ra5 {[%emt 0:03:00]} Bc8 {[%emt 0:05:47]} 27. Qd4 {[%emt 0:08:34]} (27. Rda1 {feels hotter.} Bb7 28. Ra7 Bc8 29. R1a2) 27... Qxd4 {[%emt 0:03:39]} 28. Rxd4 {[%emt 0:00:03]} Bd7 {[%emt 0:00:06]} 29. Ra6 {[%emt 0:00:52]} c3 {[%emt 0:00:50][%cal Od7f5]} 30. Ra2 {[%emt 0:04:22]} Rc8 {[%emt 0:08:37] And now ...c2 would win.} 31. Rc2 {[%emt 0:00:11]} Ree8 {[%emt 0:02:32][%cal Be5e8,Be8c8,Bc8c3][%mdl 32] [#]} 32. Ne2 {[%emt 0:01:04]} (32. Be2 $1 $16) 32... Rc7 {[%emt 0:00:12]} 33. Rxc3 {[%emt 0:00:21]} Rxc3 {[%emt 0:00:08]} 34. Nxc3 {[%emt 0:00:03]} Rc8 {[%emt 0:00:04]} 35. Nd1 {[%emt 0:51:12]} Bg4 {[%emt 0:02:51]} 36. Bxg4 {[%emt 0:00:00]} (36. Kf1 $1 $14) 36... Nxg4 $14 {[%emt 0:00:31][%mdl 4096] Endgame KRN-KRN} 37. f3 {[%emt 0:00:00]} Ne5 {[%emt 0:00:19]} 38. Ne3 {[%emt 0:00:00]} Rc3 {[%emt 0:02:06]} 39. f4 {[%emt 0:00:00]} Nd7 {[%emt 0:03:27]} 40. Kf2 {[%emt 0:00:00]} Kf8 {[%emt 0:00:42]} 41. Ke2 {[%emt 0:02:53]} Rb3 {[%emt 0:33:50]} 42. Nc2 {[%emt 0:00:53]} Nb6 {[%emt 0:05:43]} 43. Rd3 {[%emt 0:12:38]} Rb2 {[%emt 0:04:08]} 44. Kd2 {[%emt 0:00:25]} Rb1 {[%emt 0:02:55]} 45. Kc3 {[%emt 0:01:01]} Na4+ {[%emt 0:00:52]} 46. Kd4 {[%emt 0:01:46]} Rb2 {[%emt 0:03:22]} 47. Rd2 {[%emt 0:00:21]} Ke7 {[%emt 0:03:16]} 48. e5 {[%emt 0:00:24]} Rb3 {[%emt 0:00:00]} 49. Re2 {[%emt 0:00:00]} Rc3 {[%emt 0:00:00]} 50. f5 {[%emt 0:00:00]} Rc4+ {[%emt 0:00:00]} 51. Kd3 {[%emt 0:00:00]} dxe5 {[%emt 0:00:00]} 52. fxg6 {[%emt 0:00:00]} fxg6 {[%emt 0:00:00][%cal Oe7d6]} 53. Rxe5+ {[%emt 0:00:00]} Kd7 {[%emt 0:00:00]} 54. Rg5 {[%emt 0:00:00]} Nb2+ {[%emt 0:00:00]} 55. Kd2 {[%emt 0:00:00] [#] g3 is the strong threat.} Rxh4 {[%emt 0:00:00]} 56. Rxg6 {[%emt 0:00:00]} Nc4+ {[%emt 0:00:00]} 57. Kc3 {[%emt 0:00:00]} Rh1 {[%emt 0:00:00]} 58. Rh6 {[%emt 0:01:37]} h4 {[%emt 0:00:00]} 59. Nd4 {[%emt 0:02:36]} Rc1+ {[%emt 0:00:00]} 60. Kb3 {[%emt 0:00:52]} Rb1+ {[%emt 0:02:01]} 61. Kc2 {[%emt 0:00:07]} Rxb4 {[%emt 0:00:48]} 62. Kc3 {[%emt 0:02:39]} Rb2 {[%emt 0:00:18]} 63. Nxb5 {[%emt 0:00:44]} Rxb5 {[%emt 0:00:08] The position is equal.} 64. Kxc4 $11 {[%emt 0:00:04] KR-KR} Rb2 {[%emt 0:00:04]} 65. Rg6 {[%emt 0:00:10]} Rd2 {[%emt 0:01:14]} 66. Kc5 {[%emt 0:00:19]} Rc2+ {[%emt 0:00:04]} 67. Kd4 {[%emt 0:00:04]} Re2 {[%emt 0:00:07]} 68. Rg4 {[%emt 0:01:42]} Kd6 {[%emt 0:00:16]} 69. Kd3 {[%emt 0:00:16]} Re1 {[%emt 0:01:43]} 70. Rxh4 {[%emt 0:01:33] Threatens to win with Kc4.} (70. Kc4 $5 {[%cal Rg4h4]}) 70... Kxd5 {[%emt 0:00:13]} 71. Rf4 {[%emt 0:00:22]} Rg1 {[%emt 0:00:54]} 72. Rf2 {[%emt 0:00:11]} Ke5 {[%emt 0:00:11]} 73. Ke3 {[%emt 0:00:08]} Re1+ {[%emt 0:00:10]} 74. Kd2 {[%emt 0:00:16]} Rg1 {[%emt 0:00:15]} 75. Ke3 {[%emt 0:01:18] Weighted Error Value: White=0.05 (flawless) /Black=0.04 (flawless)} 1/2-1/2

[Event "Bangabandhu Premier Div League 2022"]
[Site "Dhaka"]
[Date "2022.12.06"]
[Round "7.6"]
[White "Aradhya, Garg"]
[Black "Koustav Chatterjee"]
[Result "0-1"]
[ECO "B44"]
[WhiteElo "2289"]
[BlackElo "2496"]
[Annotator "TA"]
[PlyCount "92"]
[EventDate "2022.12.01"]
[EventCountry "BAN"]
[SourceTitle "playchess.com"]
[Source "ChessBase"]
[SourceQuality "1"]
[TimeControl "40/5400+30:1800+30"]

{[%evp 18,92,10,3,20,-8,23,15,18,0,15,3,11,0,0,-7,12,12,12,-27,-26,-45,-5,-37,-14,-40,-34,-26,-28,-77,-89,-99,-78,-126,-113,-131,-71,-68,-80,-95,-57,-58,2,5,4,2,2,4,3,10,256,203,203,220,159,0,0,-91,-92,-628,-627,-615,-616,-565,-589,-570,-560,-543,-498,-1986,-1849,-29986,-29987,-29987,-29981,-29978,-5030]} 1. e4 {[%emt 1:31:00]} c5 {[%emt 0:07:12]} 2. Nf3 {[%emt 0:00:00]} e6 {[%emt 1:24:18]} 3. c4 {[%emt 0:01:00]} Nc6 {[%emt 0:00:00]} 4. Nc3 {[%emt 0:00:00]} Nf6 {[%emt 0:00:00]} 5. d4 {[%emt 0:00:00]} cxd4 {[%emt 0:00:00]} 6. Nxd4 {[%emt 0:00:00]} Bb4 {[%emt 0:00:00]} 7. Nxc6 {[%emt 0:00:00]} bxc6 {[%emt 0:00:00]} 8. Bd3 {[%emt 0:02:30]} e5 {[%emt 0:00:00]} 9. O-O {[%emt 0:00:30]} O-O {[%emt 0:03:30]} 10. Be3 {[%emt 0:00:30] 10.h3 deserves study.} d6 {[%emt 0:00:30] B44: Sicilian: Taimanov: 5 Nb5.} 11. h3 {[%emt 0:00:30]} Be6 {[%emt 0:00:30]} 12. Qc2 {[%emt 0:00:30]} Qe7 {[%emt 0:00:00] [#] The position is equal.} 13. Rfd1 $146 {[%emt 0:00:30]} ({Predecessor:} 13. Na4 d5 14. exd5 cxd5 15. cxd5 Bxd5 16. Nc3 Bb7 17. Rac1 Rac8 18. Qb3 Bc5 19. Bxc5 Rxc5 20. Qa3 Rc7 21. Qxe7 Rxe7 22. Rfd1 g6 23. Bc4 Kg7 {½-½ (23) Davis,M (2319)-Teeriaho,T (2367) ICCF email 2009}) 13... Rfd8 {[%emt 0:00:00]} 14. Rac1 {[%emt 0:00:30]} Bc5 {[%emt 0:00:00]} 15. Qe2 {[%emt 0:00:30]} Nd7 {[%emt 0:02:00]} 16. Bxc5 {[%emt 0:00:00]} dxc5 {[%emt 0:00:30] [#]} (16... Nxc5 {simplifies} 17. b4 Nd7 18. a4 Rab8) 17. Nd5 $1 {[%emt 0:01:00]} cxd5 {[%emt 0:00:30]} 18. exd5 {[%emt 0:00:00] [#]} (18. cxd5 $5 Nf8 19. dxe6 Nxe6 20. Bc4 $11) 18... Bxh3 $1 {[%emt 0:00:00]} 19. gxh3 {[%emt 0:01:00]} Qd6 {[%emt 0:01:00]} 20. Rc3 {[%emt 0:00:30]} g6 {[%emt 0:00:00]} 21. Bc2 {[%emt 0:00:00]} f5 {[%emt 0:00:00]} 22. Ba4 {[%emt 0:00:00]} Nf6 {[%emt 0:01:30]} 23. Bc6 {[%emt 0:01:30]} (23. f3 $11) 23... Rac8 $1 $17 {[%emt 0:00:00] Hoping for ...Rxc6.} 24. Re1 {[%emt 0:00:00]} e4 {[%emt 0:01:00]} 25. Ra3 {[%emt 0:01:00]} (25. Re3 $142) 25... Rc7 {[%emt 0:00:30]} 26. Ra6 {[%emt 0:00:30]} Qe5 {[%emt 0:00:00] Black is more active.} (26... Rb8 $142) 27. Qd2 f4 {[%emt 0:01:00]} 28. d6 {[%emt 0:01:00]} Rxc6 {[%emt 0:00:00]} 29. Rxc6 {[%emt 0:00:30]} e3 {[%emt 0:00:00]} (29... Qg5+ $15 30. Kh2 e3 31. fxe3 Qg3+ 32. Kh1 Qxh3+ 33. Qh2 Qf3+ 34. Qg2 Qh5+ 35. Qh2 (35. Kg1 $2 f3 $19) 35... Qf3+ 36. Qg2 Qh5+ 37. Qh2 (37. Kg1 $2 f3 $19) 37... Qf3+) 30. fxe3 $11 {[%emt 0:00:30]} f3 {[%emt 0:01:30]} 31. Qf2 {[%emt 0:00:00] Inhibits Qg3+.} Qg5+ $1 {[%emt 0:00:00]} 32. Kh2 $1 {[%emt 0:00:00]} Qe5+ $1 {[%emt 0:01:00]} 33. Qg3 {[%emt 0:01:30]} (33. Kg1 $5 Qg5+ $8 34. Kh2 Qe5+ 35. Qg3 $11) 33... Qxb2+ {[%emt 0:00:30]} (33... Qe4 $1 $11 {and Black stays safe.} 34. Rxc5 Qc2+ 35. Kh1 Ne4 36. Qxf3 Rf8) 34. Kg1 {[%emt 0:00:30] Strongly threatening Rf1.} Qc3 {[%emt 0:00:30] White must now prevent ...Ne4.} 35. Rf1 $1 {[%emt 0:00:00]} (35. Rxc5 $2 {is the wrong capture.} Ne4 36. Qh4 Rf8 $19) 35... Qxe3+ {[%emt 0:00:00] [#]} 36. Kh2 $2 {[%emt 0:00:00]} (36. Qf2 $1 $16 {[%cal Rf2e3]} Qg5+ 37. Kh2 (37. Kh1 $2 Ne4 $19)) 36... Rf8 $1 $36 {[%emt 0:00:08][%mdl 2048] Black has good play.} 37. d7 {[%emt 0:00:00]} (37. Qxf3 $11 {remains equal.} Ng4+ 38. Qxg4 Rxf1 39. Rc8+ Kg7 40. Rc7+ Kg8 41. Rc8+ Kg7 42. Rc7+ Kg8 43. Rc8+) 37... Nxd7 $17 {[%emt 0:01:22] aiming for ...Ne5. The board is on fire.} 38. Rxg6+ $2 {[%emt 0:00:00][%mdl 8192]} hxg6 $19 39. Qxg6+ {[%emt 0:00:00]} Kh8 {[%emt 0:00:00]} 40. Qh5+ {[%emt 0:00:00]} Kg7 {[%emt 0:01:30] ( -> ...Qd2+)} 41. Qg4+ {[%emt 0:33:30]} Kh6 {[%emt 0:01:19]} 42. Qh4+ {[%emt 0:00:30] [#]} Kg6 $1 {[%emt 0:29:41] Threatens to win with ...Ne5.} 43. Qg4+ {[%emt 0:00:30]} (43. Qg3+ $142 Qg5 44. Rxf3) 43... Qg5 {[%emt 0:00:00]} 44. Qe6+ {[%emt 0:00:30]} Kh5 {[%emt 0:00:00][%csl Gf3][%cal Rg5g2] Black mates.} 45. Rg1 {[%emt 0:00:00]} Qe5+ {[%emt 0:01:30]} 46. Qxe5+ {[%emt 0:00:00]} Nxe5 {[%emt 0:00:00] Weighted Error Value: White=0.64/Black=0.14 (very precise)} 0-1